Workbook

Sheet NSU
B1: Anna Honkala | E1: 25.6.2001 Seinäjoki
B2: SUPERPESIS | E2: Runkosarja | I2: Kärkilyönnit (KL), pesänvälit | Q2: Runkosarja | U2: Ylempi loppusarja | Z2: Alempi loppusarja | AG2: Arvo-ottelut ja mitalit
B3: Vuosi | C3: Sija | D3: Seura | E3: OTT | F3: KUN | G3: LÖI | H3: TOI | I3: KL | J3: 0 > 1 | K3: 1 > 2 | L3: 2 > 3 | M3: 3 > k | N3: KL-% | P3: LÖI | Q3: TOI | R3: L+T | S3: KL | U3: OTT | V3: KUN | W3: LÖI | X3: TOI | Y3: KL | Z3: OTT | AA3: KUN | AB3: LÖI | AC3: TOI | AD3: KL | AE3: IL | AF3: LL | AG3: Halli | AH3: K | AI3: H | AJ3: P
B4: 2015 | D4: NJ | F4: suomensarja
B5: 2016 | D5: NJ | F5: suomensarja
B6: 2017 | D6: NJ 2 | F6: suomensarja
B7: 2017 | D7: NJ | F7: ykköspesis
B8: 2018 | D8: NJ 2 | F8: suomensarja
B9: 2018 | D9: NJ | F9: ykköspesis
B10: 2019 | D10: NJ | F10: ykköspesis
B11: 2019 | C11: 3. | D11: Virkiä | E11: 11 | F11: 0 | G11: 1 | H11: 1 | I11: 12 | J11: 8 | K11: 3 | L11: 0 | M11: 1 | N11: 33.3 % | O11: 36 | U11: 8 | V11: 0 | W11: 1 | X11: 0 | Y11: 7 | AJ11: 1
B12: 2020 | C12: 6. | D12: SMJ | E12: 20 | F12: 0 | G12: 7 | H12: 2 | I12: 24 | J12: 5 | K12: 5 | L12: 7 | M12: 7 | N12: 32.9 % | O12: 73 | U12: 3 | V12: 0 | W12: 0 | X12: 0 | Y12: 3
B13: 2021 | C13: 5. | D13: SMJ | E13: 24 | F13: 1 | G13: 13 | H13: 8 | I13: 47 | J13: 7 | K13: 11 | L13: 15 | M13: 14 | N13: 51.1 % | O13: 92 | U13: 4 | V13: 0 | W13: 3 | X13: 1 | Y13: 8
B14: 2022 | C14: 5. | D14: SMJ | E14: 24 | F14: 0 | G14: 6 | H14: 11 | I14: 48 | J14: 6 | K14: 9 | L14: 27 | M14: 6 | N14: 49.5 % | O14: 97 | U14: 4 | V14: 0 | W14: 2 | X14: 4 | Y14: 16
B15: 2023 | C15: 4. | D15: SMJ | E15: 24 | F15: 2 | G15: 10 | H15: 19 | I15: 101 | J15: 9 | K15: 35 | L15: 45 | M15: 12 | N15: 58.4 % | O15: 173 | U15: 10 | V15: 0 | W15: 3 | X15: 6 | Y15: 21
B16: 2024 | C16: 3. | D16: SMJ | E16: 23 | F16: 2 | G16: 8 | H16: 14 | I16: 68 | J16: 9 | K16: 23 | L16: 26 | M16: 10 | N16: 54.0 % | O16: 126 | U16: 9 | V16: 1 | W16: 1 | X16: 2 | Y16: 23 | AJ16: 1
B17: Yhteensä | E17: =SUM(E4:E16) -> 126 | F17: 5 | G17: 45 | H17: 55 | I17: 300 | J17: 44 | K17: 86 | L17: 120 | M17: 50 | N17: =PRODUCT(I17/O17) -> 50.3 % | O17: =SUM(O4:O16) -> 597 | U17: =SUM(U4:U16) -> 38 | V17: 1 | W17: 10 | X17: 13 | Y17: 78 | Z17: 0 | AA17: 0 | AB17: 0 | AC17: 0 | AD17: 0 | AE17: 0 | AF17: 0 | AG17: 0 | AH17: 0 | AI17: 0 | AJ17: 2
B18: Pesispörssi | D18: =SUM(F17:H17)+((I17-F17-G17)/3)+(E17/3)+(AE17*25)+(AF17*25)+(AG17*10)+(AH17*25)+(AI17*20)+(AJ17*15) -> 260.3
B20: URA SUPERISSA | E20: OTT | F20: KUN | G20: LÖI | H20: TOI | I20: KL | K20: ka/L | L20: ka/T | M20: ka/KL | N20: KL-% | P20: ENSIMMÄISET
B21: Runkosarja | E21: =PRODUCT(E17) -> 126 | F21: =PRODUCT(F17) -> 5 | G21: =PRODUCT(G17) -> 45 | H21: =PRODUCT(H17) -> 55 | I21: =PRODUCT(I17) -> 300 | K21: =PRODUCT((F21+G21)/E21) -> 0.40 | L21: =PRODUCT(H21/E21) -> 0.44 | M21: =PRODUCT(I21/E21) -> 2.38 | N21: =PRODUCT(N17) -> 50.3 % | O21: =PRODUCT(O17) -> 597 | P21: Ottelu | R21: 12.05. 2019 LaVe - Virkiä 0-2 (1-6, 0-7) | AB21: 1. ottelu | AD21: 17 v 10 kk 17 pv
B22: Ylempi loppusarja | E22: =PRODUCT(U17) -> 38 | F22: =PRODUCT(V17) -> 1 | G22: =PRODUCT(W17) -> 10 | H22: =PRODUCT(X17) -> 13 | I22: =PRODUCT(Y17) -> 78 | K22: =PRODUCT((F22+G22)/E22) -> 0.29 | L22: =PRODUCT(H22/E22) -> 0.34 | M22: =PRODUCT(I22/E22) -> 2.05 | N22: =PRODUCT(I22/O22) -> 43.3 % | O22: 180 | P22: Lyöty | R22: 19.05. 2019 Tahko - Virkiä 1-2 (0-6, 1-0, 0-1) | AB22: 3. ottelu | AD22: 17 v 10 kk 24 pv
B23: Alempi loppusarja | P23: Tuotu | R23: 09.06. 2019 Manse PP - Virkiä 0-2 (1-3, 4-5) | AB23: 8. ottelu | AD23: 17 v 11 kk 15 pv
B24: KAIKKI | E24: =SUM(E21:E23) -> 164 | F24: =SUM(F21:F23) -> 6 | G24: =SUM(G21:G23) -> 55 | H24: =SUM(H21:H23) -> 68 | I24: =SUM(I21:I23) -> 378 | K24: =PRODUCT((F24+G24)/E24) -> 0.37 | L24: =PRODUCT(H24/E24) -> 0.41 | M24: =PRODUCT(I24/E24) -> 2.30 | N24: =PRODUCT(I24/O24) -> 48.6 % | O24: =SUM(O21:O23) -> 777 | P24: Kunnari | R24: 27.07. 2021 SMJ - Fera 2-0 (12-1, 7-1) | AB24: 36. ottelu | AD24: 20 v 1 kk 2 pv
B26: Seurat | D26: NJ = Nurmon Jymy (1925), kasvattajaseura
D27: Virkiä = Lapuan Virkiä (1907)
D28: SMJ = Seinäjoen Maila-Jussit (1932)

Sheet Arvo-ottelut
B1: ITÄ - LÄNSI - KORTTI
B2: Anna Honkala | C2: 25.6.2001 Seinäjoki
B3: B-TYTÖT | C3: Itä - Länsi, tulos | D3: Joukkue | E3: Seura | G3: V | H3: T | I3: H | J3: Up. | K3: Lj. | L3: Palk. | M3: O | N3: K | O3: L | P3: T | Q3: KL | R3: 1 | S3: 2 | T3: 3 | U3: k | V3: KL-% | W3: Pelinjohtaja | X3: Yleisöä
B4: 06.07. 2019 Seinäjoki | C4: 0-1 (4-4, 0-4) | D4: Länsi | E4: Virkiä | G4: 1 | J4: 2v | K4: 5 | M4: 1 | Q4: 2/5 | R4: 0/2 | S4: 1/1 | T4: 1/1 | U4: 0/1 | V4: 40.0 % | W4: Jussi Frantsila | X4: 1054
